bitfinex/quotes_BTCUSD_20260311
["timestamp","ask_amount","ask_price","bid_price","bid_amount"]
[1773245751259,0.00144,70417.0,70402.0,0.0710207]
[1773245751452,0.00144,70417.0,70403.0,0.17779098]
[1773245753847,0.00144,70417.0,70405.0,0.17779098]
[1773245754355,0.07244593,70417.0,70383.0,0.0002]
[1773245754566,0.17039268,70416.0,70398.0,0.07122467]
[1773245754698,0.17039268,70416.0,70403.0,0.1]
[1773245754899,0.17039268,70416.0,70398.0,0.07122467]
[1773245755097,0.17039268,70416.0,70371.0,0.20571545]
[1773245755098,0.17039268,70416.0,70392.0,0.07102998]
[1773245755417,0.12695415,70410.0,70384.0,0.24902955]
[1773245755735,0.17039268,70407.0,70385.0,0.24882884]
[1773245756142,0.17039268,70407.0,70381.0,1e-08]
[1773245756342,0.17039268,70399.0,70372.0,0.07119255]
[1773245756562,0.17039268,70397.0,70375.0,0.07155305]
[1773245756693,0.17039268,70395.0,70375.0,0.07155305]
[1773245757529,0.17039268,70395.0,70375.0,0.07192569]
[1773245757764,0.07102878,70394.0,70375.0,0.00087784]
[1773245757934,0.24142146,70394.0,70375.0,0.0719257]
[1773245758141,0.00144,70393.0,70375.0,0.0719257]
[1773245758554,0.00022001,70456.0,70375.0,0.0719257]
[1773245758555,0.23969416,70418.0,70376.0,0.17779098]
[1773245758781,0.00144,70417.0,70376.0,0.17779098]
[1773245758980,0.001,70395.0,70375.0,0.0719257]
[1773245759181,0.001,70395.0,70376.0,0.17923098]
[1773245759532,0.00144,70394.0,70376.0,0.17923098]
[1773245759749,0.00144,70395.0,70376.0,0.17923098]
[1773245759947,0.00144,70395.0,70378.0,0.17779098]
[1773245760543,0.0724684,70395.0,70380.0,0.17779098]
[1773245760923,0.001,70393.0,70380.0,0.17779098]
[1773245761168,0.001,70393.0,70375.0,0.07212494]
[1773245761368,0.0014,70392.0,70375.0,0.00107784]
[1773245761670,0.17039268,70391.0,70375.0,0.00107784]
[1773245761886,0.07103281,70390.0,70367.0,0.0002]
[1773245762052,0.17039268,70389.0,70367.0,0.0713675]
[1773245763529,0.07103281,70390.0,70368.0,0.17779098]
[1773245763935,0.07102272,70403.0,70370.0,0.17779098]
[1773245764463,0.00144,70402.0,70370.0,0.17779098]
[1773245764856,0.00144,70401.0,70372.0,0.17779098]
[1773245765607,0.17039268,70399.0,70372.0,0.0001421]
[1773245766161,0.07102474,70398.0,70372.0,0.17793308]
[1773245766505,0.00144,70397.0,70372.0,0.17793308]
[1773245766711,0.07102474,70398.0,70372.0,0.17793308]
[1773245766855,0.07102474,70400.0,70374.0,0.17779098]
[1773245766856,0.00144,70397.0,70374.0,0.17779098]
[1773245767066,0.07102474,70400.0,70374.0,0.17779098]
[1773245767261,0.00144,70399.0,70374.0,0.17779098]
[1773245767461,0.00144,70399.0,70379.0,0.17779098]
[1773245768302,0.07102474,70398.0,70380.0,0.0710429]
[1773245769886,0.00144,70397.0,70381.0,0.17779098]
[1773245770111,0.00144,70396.0,70382.0,0.17779098]
[1773245770287,0.00144,70395.0,70383.0,0.07103988]
[1773245770490,0.00144,70397.0,70384.0,0.17779098]
[1773245770693,0.07124072,70402.0,70384.0,0.17779098]
[1773245770879,0.00144,70396.0,70384.0,0.17779098]
[1773245771330,0.00144,70397.0,70384.0,0.17779098]
[1773245771531,0.00144,70401.0,70384.0,0.17779098]
[1773245771833,0.00144,70401.0,70386.0,0.17779098]
[1773245772029,0.07123289,70410.0,70386.0,0.17779098]
[1773245772280,0.07123289,70410.0,70387.0,0.07103584]
[1773245772281,0.07245403,70409.0,70387.0,0.07103584]
[1773245772490,0.07245403,70409.0,70388.0,0.17779098]
[1773245772869,0.00022001,70410.0,70388.0,0.17779098]
[1773245773068,0.00144,70408.0,70388.0,0.17779098]
[1773245773298,0.07123284,70410.0,70386.0,0.07103584]
[1773245773477,0.07123284,70410.0,70379.0,0.07104299]
[1773245773478,0.07123284,70410.0,70382.0,0.17779098]
[1773245773632,0.00144,70409.0,70382.0,0.17779098]
[1773245774974,0.07101465,70408.0,70384.0,0.17779098]
[1773245775775,0.00122001,70410.0,70384.0,0.17779098]
[1773245775997,0.00144,70409.0,70384.0,0.17779098]
[1773245777132,0.00144,70409.0,70386.0,0.17779098]
[1773245777308,0.00022001,70410.0,70386.0,0.17779098]
[1773245777480,0.00144,70408.0,70388.0,0.17779098]
[1773245777849,0.07123272,70410.0,70388.0,0.17779098]
[1773245778077,0.00144,70409.0,70388.0,0.17779098]
[1773245779313,0.07101465,70408.0,70389.0,0.07103382]
[1773245779541,0.07101465,70408.0,70389.0,0.2488248]
[1773245779721,0.07123272,70410.0,70389.0,0.2488248]
[1773245779722,0.00022001,70410.0,70390.0,0.16075208]
[1773245779924,0.00144,70407.0,70390.0,0.16075208]
[1773245780489,0.00181195,70407.0,70390.0,0.16075208]
[1773245781305,0.07101667,70406.0,70389.0,0.07103382]
[1773245781524,0.07101667,70406.0,70390.0,0.001]
[1773245781771,0.00181195,70407.0,70391.0,0.16075208]
[1773245782128,0.00144,70406.0,70391.0,0.16075208]
[1773245782460,0.00144,70407.0,70391.0,0.16075208]
[1773245782662,0.07100822,70415.0,70391.0,0.16075208]
[1773245782663,0.00022001,70429.0,70391.0,0.16075208]
[1773245782839,0.00033152,70417.0,70391.0,0.16075208]
[1773245783033,0.00173152,70417.0,70391.0,0.16075208]
[1773245783438,0.00173152,70417.0,70392.0,0.07103079]
[1773245783660,0.00173152,70417.0,70393.0,0.16075208]
[1773245783853,0.14167071,70416.0,70395.0,0.16075208]
[1773245784050,0.16373979,70414.0,70394.0,0.00144]
[1773245784252,0.14167071,70413.0,70394.0,0.00144]
[1773245784455,0.14167071,70412.0,70394.0,0.00144]
[1773245784672,0.14167071,70411.0,70394.0,0.16219208]
[1773245784989,0.14307071,70410.0,70394.0,0.16219208]
[1773245785147,0.0014,70410.0,70394.0,0.16219208]
[1773245785772,0.14307071,70410.0,70395.0,0.07102777]
[1773245785973,0.0014,70410.0,70395.0,0.23177985]
[1773245786138,0.14307071,70410.0,70395.0,0.23177985]
[1773245786338,0.0014,70410.0,70395.0,0.23177985]
[1773245786838,0.14307071,70410.0,70396.0,0.16075208]
[1773245787175,0.0014,70410.0,70396.0,0.16075208]
[1773245787354,0.07241303,70410.0,70385.0,0.07103382]
[1773245787556,0.07241303,70410.0,70377.0,0.07104507]
[1773245787557,0.16373979,70408.0,70384.0,0.07103786]
[1773245787873,0.16373979,70405.0,70383.0,0.07103786]
[1773245788190,0.16373979,70403.0,70383.0,0.07103786]
[1773245788480,0.16373979,70401.0,70395.0,0.001]
[1773245788776,0.16373979,70401.0,70383.0,0.07103786]
[1773245788979,0.1416969,70400.0,70371.0,0.07105199]
[1773245789136,0.16373979,70398.0,70370.0,0.0002]
[1773245789339,0.16373979,70396.0,70370.0,0.0002]
[1773245789684,0.16373979,70396.0,70360.0,0.15492949]
[1773245789685,0.16373979,70378.0,70358.0,1e-08]
[1773245789921,0.16373979,70376.0,70358.0,1e-08]
[1773245790062,0.00144,70375.0,70358.0,1e-08]
[1773245790229,0.16373979,70374.0,70358.0,1e-08]
[1773245790654,0.00144,70373.0,70358.0,1e-08]
[1773245790856,0.16373979,70372.0,70358.0,0.00037196]
[1773245791684,0.07105199,70371.0,70358.0,0.00037196]
[1773245792850,0.16373979,70370.0,70355.0,0.00068]
[1773245793050,0.16373979,70370.0,70355.0,0.00079179]
[1773245793512,0.16373979,70370.0,70350.0,0.07151246]
[1773245793671,0.16385127,70370.0,70350.0,0.07151246]
[1773245794405,0.16373979,70368.0,70350.0,0.0004398]
[1773245794709,0.16373979,70368.0,70350.0,0.07151247]
[1773245794907,0.16373979,70368.0,70350.0,0.07151255]
[1773245795814,0.16373979,70368.0,70350.0,0.0004398]
[1773245796111,0.00144,70367.0,70350.0,0.07171287]
[1773245796310,0.16373979,70366.0,70350.0,0.07171287]
[1773245796522,0.16373979,70366.0,70350.0,0.07171293]
[1773245796523,0.23479784,70365.0,70350.0,0.07171293]
[1773245796922,0.16373979,70364.0,70350.0,0.0006398]
[1773245797160,0.07105805,70365.0,70350.0,0.07171272]
[1773245797338,0.00144,70364.0,70351.0,0.16075208]
[1773245798641,0.07106007,70363.0,70351.0,0.16075208]
[1773245798799,0.07106007,70363.0,70350.0,0.0006398]
[1773245799007,0.16373979,70362.0,70350.0,0.0006398]
[1773245799841,0.07106007,70366.0,70350.0,0.0006398]
[1773245799842,0.07105401,70369.0,70351.0,0.23704239]
[1773245800063,0.15932191,70368.0,70350.0,0.0006398]
[1773245800582,0.15932191,70368.0,70342.0,0.00164]
[1773245800583,0.15788191,70366.0,70342.0,0.0002]
[1773245801278,0.00144,70365.0,70343.0,0.16617906]
[1773245801448,0.22893794,70367.0,70343.0,0.16617906]
[1773245801611,0.22893794,70367.0,70350.0,0.001]
[1773245801612,0.15788191,70363.0,70350.0,0.001]
[1773245801808,0.15788191,70363.0,70342.0,0.07128115]
[1773245802226,0.15788191,70363.0,70342.0,0.23746021]
[1773245802480,0.00144,70362.0,70343.0,0.16617906]
[1773245802682,0.07106209,70361.0,70345.0,0.16617906]
[1773245802883,0.00144,70360.0,70345.0,0.16617906]
[1773245803261,0.15788191,70359.0,70344.0,0.07107926]
[1773245804574,0.07106512,70358.0,70343.0,0.0002]
[1773245804787,0.07106512,70358.0,70343.0,0.07128025]
[1773245805985,0.07106512,70358.0,70343.0,0.23745931]
[1773245806816,0.07106512,70359.0,70343.0,0.07128025]
[1773245806980,0.07106512,70359.0,70344.0,0.16617906]
[1773245807802,0.00144,70358.0,70343.0,0.07128025]
[1773245808022,0.07206078,70363.0,70344.0,0.16617906]
[1773245808255,0.00144,70362.0,70344.0,0.16617906]
[1773245808976,0.15788191,70382.0,70350.0,0.12714488]
[1773245809186,0.00144,70381.0,70352.0,0.16617906]
[1773245809322,0.07103079,70392.0,70352.0,0.16617906]
[1773245809323,0.15932191,70380.0,70352.0,0.16617906]
[1773245809647,0.15932191,70379.0,70352.0,0.16617906]
[1773245809848,0.07103079,70392.0,70352.0,0.16617906]
[1773245809849,0.00144,70378.0,70352.0,0.16617906]
[1773245810099,0.00144,70377.0,70352.0,0.16617906]
[1773245810257,0.15136892,70379.0,70352.0,0.16617906]
[1773245810600,0.00144,70378.0,70352.0,0.16617906]
[1773245811419,0.15136892,70379.0,70354.0,0.15161243]
[1773245811570,0.00144,70378.0,70354.0,0.15161243]
[1773245811765,0.17013827,70404.0,70354.0,0.15161243]
[1773245811949,0.07247685,70388.0,70354.0,0.15161243]
[1773245812151,0.07103425,70389.0,70361.0,0.15161243]
[1773245812372,0.00144,70387.0,70363.0,0.15161243]
[1773245812776,0.07103425,70389.0,70363.0,0.15161243]
[1773245812979,0.00022001,70387.0,70363.0,0.15161243]
[1773245813351,0.00022001,70387.0,70365.0,0.15161243]
[1773245813572,0.00022001,70394.0,70370.0,0.12714488]
[1773245813786,0.00136205,70392.0,70371.0,0.15305243]
[1773245814129,0.00144,70391.0,70371.0,0.15305243]
[1773245814332,0.00022001,70394.0,70371.0,0.15305243]
[1773245814551,0.00144,70392.0,70371.0,0.15305243]
[1773245815003,0.21232396,70403.0,70371.0,0.15305243]
[1773245815191,0.14274378,70402.0,70371.0,0.15305243]
[1773245815484,0.07246171,70401.0,70373.0,0.15161243]
[1773245815716,0.00144,70401.0,70373.0,0.15161243]
[1773245815933,0.00144,70400.0,70373.0,0.15161243]
[1773245816666,0.00155175,70400.0,70373.0,0.15161243]
[1773245817314,0.00011175,70400.0,70375.0,0.15161243]
[1773245817575,0.00155175,70400.0,70375.0,0.15161243]
[1773245817766,0.00011175,70400.0,70380.0,0.12714488]
[1773245817981,0.14130378,70405.0,70382.0,0.15161243]
[1773245818180,0.00037234,70405.0,70382.0,0.15161243]
[1773245818516,0.00144,70408.0,70382.0,0.15161243]
[1773245818718,0.00144,70408.0,70382.0,0.15198477]
[1773245819319,0.00014205,70399.0,70382.0,0.15198477]
[1773245819722,0.00014205,70399.0,70383.0,0.07103988]
[1773245819926,0.00014205,70399.0,70384.0,0.15161243]
[1773245820180,0.00022001,70409.0,70384.0,0.15161243]
[1773245820701,0.00022001,70409.0,70390.0,0.12714488]
[1773245820905,1e-08,70409.0,70391.0,0.15305243]
[1773245821106,1e-08,70415.0,70391.0,0.15305243]
[1773245821747,1e-08,70415.0,70392.0,0.07103079]
[1773245821957,1e-08,70415.0,70393.0,0.15161243]
[1773245822866,0.15136892,70414.0,70392.0,0.07103079]
[1773245823087,0.15136892,70414.0,70393.0,0.00144]
[1773245823306,0.15136892,70414.0,70392.0,0.07103079]
[1773245823527,0.00022001,70408.0,70391.0,0.001]
[1773245823682,0.15136892,70406.0,70391.0,0.001]
[1773245823891,0.15136892,70404.0,70391.0,0.0710314]
[1773245824118,0.07101737,70406.0,70391.0,0.0710314]
[1773245824293,0.15136892,70405.0,70391.0,0.0710314]
[1773245824475,0.00144,70404.0,70392.0,0.15161243]
[1773245824676,0.00144,70404.0,70393.0,0.001]
[1773245824875,0.00022001,70408.0,70393.0,0.001]
[1773245825089,0.00022001,70408.0,70394.0,0.15161243]
[1773245825495,0.00022001,70408.0,70394.0,0.15305243]
[1773245825894,0.00022001,70408.0,70395.0,0.07102777]
[1773245826508,0.15136892,70416.0,70395.0,0.07102777]
[1773245826710,0.00022001,70417.0,70395.0,0.07102777]
[1773245826711,0.00022001,70417.0,70396.0,0.15161243]
[1773245828168,0.00022001,70417.0,70398.0,0.15161243]
[1773245828372,0.15136892,70415.0,70397.0,0.07102575]
[1773245828586,0.15136892,70415.0,70398.0,0.00144]
[1773245829219,0.07122599,70417.0,70399.0,0.15161243]
[1773245829220,0.00022001,70417.0,70399.0,0.15161243]
[1773245829419,0.00166001,70417.0,70399.0,0.15161243]
[1773245830132,0.00166001,70417.0,70400.0,0.07102272]
[1773245830328,0.00166001,70417.0,70400.0,0.22263515]
[1773245830597,0.00022001,70417.0,70401.0,0.15161243]
[1773245831225,0.07100658,70416.0,70399.0,0.07102344]
[1773245831422,0.07100658,70416.0,70397.0,0.07202474]
[1773245831423,0.15136892,70415.0,70397.0,0.07202474]
[1773245832180,0.15136892,70415.0,70397.0,0.07102474]
[1773245832378,0.22237752,70414.0,70396.0,0.07102575]
[1773245832570,0.00144,70413.0,70396.0,0.07102575]
[1773245833000,0.15136892,70412.0,70395.0,0.07102575]
[1773245833211,0.00144,70411.0,70395.0,0.07102575]
[1773245833623,0.00144,70411.0,70400.0,0.001]
[1773245834421,0.22382113,70411.0,70401.0,0.07102171]
[1773245834621,0.15280892,70411.0,70401.0,0.07102171]
[1773245835286,0.15280892,70411.0,70393.0,0.00144]
[1773245835287,0.07245193,70411.0,70391.0,0.0002]
[1773245835494,0.15136892,70408.0,70391.0,0.07123127]
[1773245835916,0.15136892,70408.0,70390.0,0.0710328]
[1773245836130,0.15136892,70408.0,70383.0,0.0710389]
[1773245836583,0.15136892,70406.0,70382.0,0.00037234]
[1773245836776,0.15136892,70406.0,70374.0,0.07126795]
[1773245837011,0.15174126,70406.0,70374.0,0.07126795]
[1773245837243,0.15174126,70406.0,70374.0,0.22288038]
[1773245838584,0.15136892,70404.0,70375.0,0.15305243]
[1773245838808,0.00144,70403.0,70375.0,0.00144]
[1773245839121,0.15136892,70402.0,70375.0,0.00144]
[1773245841062,0.14477419,70400.0,70376.0,0.07104694]
[1773245842888,0.07102373,70399.0,70376.0,0.07104694]
[1773245843108,0.14477419,70398.0,70376.0,0.07104694]
[1773245843512,0.00144,70397.0,70377.0,0.14732164]
[1773245844367,0.14477419,70396.0,70376.0,0.07104694]
[1773245844581,0.14477419,70394.0,70376.0,0.07104694]
[1773245844807,0.14477419,70394.0,70365.0,0.20776177]
[1773245845044,0.14477419,70394.0,70359.0,0.14732164]
[1773245845045,0.14477419,70389.0,70362.0,0.07106073]
[1773245845283,0.07102978,70393.0,70365.0,0.07105772]
[1773245845284,0.14477419,70387.0,70365.0,0.07105772]
[1773245845526,0.07102978,70393.0,70365.0,0.07105772]
[1773245845527,0.14477419,70385.0,70365.0,0.07105772]
[1773245845969,0.00144,70384.0,70366.0,0.14746375]
[1773245846425,0.00144,70389.0,70377.0,0.0002]
[1773245846634,0.21580397,70393.0,70377.0,0.0002]
[1773245846851,0.00144,70392.0,70377.0,0.0002]
[1773245847054,0.0710318,70391.0,70378.0,0.07104492]
[1773245847474,0.00144,70390.0,70378.0,0.07104492]
[1773245848274,0.0710318,70391.0,70378.0,0.07104492]
[1773245848479,0.07102623,70397.0,70379.0,0.14732164]
[1773245848672,0.00144,70396.0,70379.0,0.14732164]
[1773245848867,0.21579605,70401.0,70379.0,0.14732164]
[1773245849069,0.07246787,70395.0,70381.0,0.14732164]
[1773245850844,0.00144,70395.0,70381.0,0.14732164]
[1773245850985,0.07102289,70400.0,70382.0,0.07104089]
[1773245851187,0.00144,70394.0,70382.0,0.07104089]
[1773245851935,0.00144,70394.0,70383.0,0.14732164]
[1773245852113,0.00144,70394.0,70382.0,0.07104089]
[1773245852114,0.14477419,70393.0,70377.0,0.07135712]
[1773245852436,0.14477419,70393.0,70381.0,0.001]
[1773245853138,0.07246957,70394.0,70382.0,0.07104089]
[1773245853438,0.00144,70393.0,70383.0,0.14732164]
[1773245853671,0.07102495,70398.0,70383.0,0.14732164]
[1773245853869,0.00144,70396.0,70383.0,0.14732164]
[1773245854843,0.00144,70395.0,70382.0,0.07204089]
[1773245855201,0.07102878,70394.0,70382.0,0.07204089]
[1773245855440,0.07102878,70394.0,70382.0,0.07104089]
[1773245856453,0.07102878,70394.0,70382.0,0.07204089]
[1773245856799,0.21579914,70398.0,70382.0,0.07104089]
[1773245857005,0.00144,70397.0,70382.0,0.07104089]
[1773245857328,0.14477419,70398.0,70382.0,0.07104089]
[1773245857656,0.00144,70397.0,70383.0,0.14732164]
[1773245857863,0.00022001,70417.0,70383.0,0.14732164]
[1773245858072,0.00144,70401.0,70385.0,0.14732164]
[1773245858420,0.14477419,70405.0,70384.0,0.00144]
[1773245858624,0.14477419,70399.0,70382.0,0.07104089]
[1773245859033,0.14477419,70399.0,70382.0,0.07204089]
[1773245859226,0.14477419,70399.0,70382.0,0.07104089]
[1773245859431,0.14477419,70397.0,70381.0,0.07104089]
[1773245860437,0.14477419,70397.0,70385.0,0.001]
[1773245860652,0.14477419,70397.0,70374.0,0.0002]
[1773245860853,0.14488586,70397.0,70374.0,0.0002]
[1773245861039,0.14488586,70397.0,70375.0,0.07104795]
[1773245861494,0.07102676,70396.0,70375.0,0.07104795]
[1773245861652,0.14563293,70395.0,70375.0,0.07104795]
[1773245862076,0.14563293,70393.0,70375.0,0.07104795]
[1773245863631,0.14563293,70391.0,70374.0,0.0002]
[1773245863836,0.14563293,70391.0,70369.0,0.07125381]
[1773245863837,0.14563293,70391.0,70369.0,0.07125393]
[1773245865119,0.14563293,70391.0,70369.0,0.0002]
[1773245865532,0.07103281,70390.0,70369.0,0.07125386]
[1773245865733,0.14563293,70389.0,70369.0,0.07125386]
[1773245865931,0.07103281,70390.0,70369.0,0.07125386]
[1773245865932,0.14563293,70387.0,70369.0,0.07125386]
[1773245866159,0.14563293,70387.0,70369.0,0.0002]
[1773245867466,0.14663293,70387.0,70369.0,0.0002]
[1773245867666,0.14663293,70387.0,70369.0,0.07125368]
[1773245867902,0.07103685,70386.0,70369.0,0.07125368]
[1773245868031,0.07203685,70387.0,70370.0,0.14234758]
[1773245868032,0.00144,70385.0,70370.0,0.14234758]
[1773245868454,0.07103584,70389.0,70370.0,0.14234758]
[1773245868455,0.07102676,70396.0,70370.0,0.14234758]
[1773245868864,0.00144,70395.0,70370.0,0.14234758]
[1773245869070,0.00144,70394.0,70370.0,0.14234758]
[1773245869442,0.14707293,70394.0,70370.0,0.14234758]
[1773245869641,0.001,70387.0,70370.0,0.14234758]
[1773245869846,0.00011167,70397.0,70371.0,0.07105199]
[1773245870048,0.00144,70396.0,70372.0,0.13448498]
[1773245870283,0.00144,70396.0,70374.0,0.13448498]
[1773245870486,0.00144,70395.0,70374.0,0.13448498]
[1773245872251,0.07102878,70394.0,70376.0,0.13448498]
[1773245873036,0.00011167,70397.0,70376.0,0.13448498]
[1773245873439,0.00144,70396.0,70376.0,0.13448498]
[1773245873841,0.00144,70395.0,70376.0,0.13448498]
[1773245874366,0.00144,70395.0,70378.0,0.13448498]
[1773245874367,0.07246878,70394.0,70378.0,0.13448498]
[1773245874530,0.00144,70394.0,70378.0,0.13448498]
[1773245876224,0.07246944,70394.0,70379.0,0.07104391]
[1773245876448,0.07246944,70394.0,70380.0,0.13448498]
[1773245876833,0.00144,70394.0,70380.0,0.13448498]
[1773245878017,0.00011167,70397.0,70380.0,0.13448498]
[1773245878331,80.0,70743.0,70380.0,0.13448498]
[1773245878332,0.00022001,70414.0,70384.0,0.13448498]
[1773245878484,0.00144,70409.0,70384.0,0.13448498]
[1773245878687,0.00144,70408.0,70384.0,0.13485732]
[1773245879125,0.07122946,70414.0,70384.0,0.13485732]
[1773245879327,0.00144,70409.0,70384.0,0.13485732]
[1773245879530,0.00144,70413.0,70384.0,0.09900151]
[1773245880358,0.00144,70413.0,70385.0,0.07103786]
[1773245880533,0.00144,70413.0,70386.0,0.13448498]
[1773245880735,0.07244964,70413.0,70388.0,0.13448498]
[1773245880960,0.13740247,70412.0,70388.0,0.13448498]
[1773245881416,0.07122962,70415.0,70387.0,0.00144]
[1773245881417,0.00022001,70415.0,70390.0,0.12716507]
[1773245881621,0.000142,70423.0,70400.0,0.12716507]
[1773245881814,0.07165835,70436.0,70385.0,0.07103786]
[1773245881815,1e-08,70425.0,70404.0,0.13448498]
[1773245882011,1e-08,70425.0,70406.0,0.13448498]
[1773245882524,1e-08,70425.0,70408.0,0.13448498]
[1773245883300,0.00011167,70425.0,70408.0,0.13448498]
[1773245883832,0.00050047,70425.0,70408.0,0.13448498]
[1773245884560,0.13740247,70424.0,70405.0,0.07101667]
[1773245884747,0.13779127,70424.0,70405.0,0.07101667]
[1773245884918,0.13779127,70424.0,70405.0,0.20550165]
[1773245885553,0.13779127,70424.0,70408.0,0.001]
[1773245885720,0.13779127,70424.0,70409.0,0.13592498]
[1773245885721,1e-08,70424.0,70409.0,0.13592498]
[1773245886546,1e-08,70424.0,70410.0,0.07101264]
[1773245886749,1e-08,70424.0,70411.0,0.13448498]
[1773245888034,1e-08,70424.0,70410.0,0.07101264]
[1773245888035,0.13882189,70451.0,70420.0,0.12716507]
[1773245888244,0.00144,70447.0,70421.0,0.13592498]
[1773245888420,0.00058776,70448.0,70421.0,0.13592498]
[1773245888421,0.00058776,70448.0,70421.0,0.13578296]
[1773245888751,0.00022001,70456.0,70431.0,0.13448498]
[1773245888875,0.00022001,70456.0,70433.0,0.13448498]
[1773245889070,1e-08,70456.0,70434.0,0.23587642]
[1773245889295,1e-08,70456.0,70435.0,0.13448498]
[1773245889778,0.3209546,70468.0,70434.0,0.23587642]
[1773245889779,0.3209546,70468.0,70441.0,0.13448498]
[1773245889780,0.32095434,70468.0,70441.0,0.13448498]
[1773245889999,0.32095434,70468.0,70434.0,0.23587642]
[1773245890000,0.32095434,70468.0,70443.0,0.13448498]
[1773245890212,0.13740247,70466.0,70441.0,0.00144]
[1773245890589,0.13740247,70466.0,70441.0,0.13592498]
[1773245890792,0.13740247,70464.0,70442.0,0.07098038]
[1773245891426,0.13740247,70464.0,70442.0,0.20546536]
[1773245891638,0.13740247,70464.0,70441.0,0.07098038]
[1773245891843,0.13740247,70459.0,70430.0,0.07099168]
[1773245892018,0.13740247,70459.0,70424.0,0.23587642]
[1773245892019,0.13740247,70450.0,70423.0,0.07129674]
[1773245892200,0.00011155,70450.0,70424.0,0.13448498]
[1773245892410,0.00011155,70450.0,70425.0,0.00144]
[1773245892411,0.00144,70449.0,70425.0,0.00144]
[1773245892750,0.07097433,70448.0,70427.0,0.07099549]
[1773245892950,0.07097433,70448.0,70428.0,0.13448498]
[1773245893264,0.13740247,70447.0,70428.0,0.13448498]
[1773245893414,0.13740247,70447.0,70427.0,0.07099549]
[1773245894844,0.07097433,70448.0,70429.0,0.20547846]
[1773245895062,0.13740247,70447.0,70429.0,0.07099348]
[1773245895250,0.13884247,70447.0,70429.0,0.07099348]
[1773245895615,0.13884247,70447.0,70427.0,0.07099549]
[1773245895825,0.13884247,70447.0,70425.0,0.00144]
[1773245895826,0.13884247,70447.0,70425.0,0.07099751]
[1773245896044,0.07097433,70448.0,70425.0,0.07099751]
[1773245896045,0.2083768,70448.0,70426.0,0.13448498]
[1773245896245,0.00144,70446.0,70426.0,0.13448498]
[1773245897051,0.07241735,70445.0,70428.0,0.13448498]
[1773245897243,0.07097663,70446.0,70428.0,0.13448498]
[1773245897446,0.00011155,70450.0,70428.0,0.13448498]
[1773245899194,0.00011155,70450.0,70430.0,0.13448498]
[1773245899844,0.07096577,70457.0,70430.0,0.13448498]
[1773245900194,0.1309476,70466.0,70430.0,0.12727662]
[1773245900352,0.10166001,70468.0,70431.0,0.12927653]
[1773245900557,0.10022001,70468.0,70441.0,0.12927653]
[1773245900762,0.10022001,70468.0,70443.0,0.12927653]
[1773245901228,0.10022001,70468.0,70445.0,0.12927653]
[1773245901975,0.1309476,70467.0,70446.0,0.00144]
[1773245902243,0.1309476,70467.0,70444.0,0.07097836]
[1773245902244,0.1309476,70467.0,70447.0,0.00144]
[1773245903040,0.001,70448.0,70447.0,0.00144]
[1773245903224,0.2019038,70466.0,70448.0,0.07097433]
[1773245903422,0.2019038,70466.0,70447.0,0.07241433]
[1773245903423,0.1309476,70465.0,70447.0,0.07241433]
[1773245904224,0.1309476,70465.0,70447.0,0.07097433]
[1773245904468,0.00144,70464.0,70447.0,0.07097433]
[1773245904872,0.00144,70464.0,70447.0,0.20025086]
[1773245905207,0.0709562,70466.0,70448.0,0.12927653]
[1773245905356,0.00144,70463.0,70448.0,0.12927653]
[1773245906146,0.0709562,70466.0,70448.0,0.12927653]
[1773245906338,0.0723962,70466.0,70448.0,0.12927653]
[1773245906934,0.00014194,70450.0,70448.0,0.12927653]
[1773245907135,0.00144,70466.0,70449.0,0.07097332]
[1773245907340,0.10022001,70468.0,70450.0,0.12927653]
[1773245907965,0.17117424,70468.0,70450.0,0.12927653]
[1773245908307,0.10022001,70468.0,70452.0,0.12927653]
[1773245908782,0.10022001,70468.0,70454.0,0.12927653]
[1773245909303,0.10022001,70468.0,70456.0,0.12927653]
[1773245909480,0.01124,70472.0,70456.0,0.12927653]
[1773245909682,0.08230203,70472.0,70456.0,0.12927653]
[1773245910112,0.00022001,70464.0,70456.0,0.12927653]
[1773245910699,0.00022001,70464.0,70452.0,0.07096728]
[1773245910700,0.00022001,70464.0,70450.0,0.07197131]
[1773245910874,0.13116761,70464.0,70450.0,0.07097131]
[1773245911078,0.13116761,70464.0,70448.0,0.07097433]
[1773245911399,0.00144,70463.0,70448.0,0.07097433]
[1773245912128,0.00144,70463.0,70447.0,0.02746221]
[1773245912335,0.1309476,70462.0,70447.0,0.02746221]
[1773245912628,0.00144,70463.0,70447.0,0.02746221]
[1773245912827,0.00144,70463.0,70433.0,0.07098945]
[1773245912981,0.1309476,70459.0,70428.0,0.07119395]
[1773245913180,0.1309476,70457.0,70428.0,0.07119395]
[1773245913485,0.1309476,70455.0,70428.0,0.07119395]
[1773245914288,0.07096325,70462.0,70430.0,0.12695919]
[1773245914490,0.00144,70461.0,70431.0,0.12927653]
[1773245914776,0.1309476,70460.0,70432.0,0.00144]
[1773245915009,0.1309476,70460.0,70433.0,0.12927653]
[1773245915225,0.07096325,70459.0,70434.0,0.07098844]
[1773245915382,0.07096325,70459.0,70435.0,0.12927653]
[1773245915593,0.20191085,70459.0,70435.0,0.12927653]
[1773245915954,0.001,70455.0,70435.0,0.12927653]
[1773245916123,0.00144,70454.0,70435.0,0.12927653]
[1773245916450,0.00144,70454.0,70436.0,0.00144]
[1773245916952,0.00144,70454.0,70437.0,0.13071653]
[1773245917353,0.00144,70454.0,70438.0,0.07098441]
[1773245917354,0.07096929,70453.0,70438.0,0.07098441]
[1773245917921,0.0724089,70454.0,70438.0,0.20026094]
[1773245918122,0.00144,70454.0,70438.0,0.20026094]
[1773245918358,0.07096309,70460.0,70438.0,0.20026094]
[1773245918359,0.0709565,70466.0,70440.0,0.12695919]
[1773245918560,0.07109374,70471.0,70441.0,0.12927653]
[1773245919151,0.00022001,70462.0,70441.0,0.12927653]
[1773245919353,0.00022001,70462.0,70443.0,0.12927653]
[1773245919557,0.00022001,70462.0,70445.0,0.12927653]
[1773245920957,0.00022001,70470.0,70445.0,0.12927653]
[1773245921151,0.07117232,70470.0,70445.0,0.12927653]
[1773245921578,0.07117232,70470.0,70447.0,0.1265132]
[1773245922747,0.07117232,70470.0,70448.0,0.00144]
[1773245922982,0.07117232,70470.0,70449.0,0.1265132]
[1773245923622,0.07095419,70468.0,70451.0,0.1265132]
[1773245924191,0.0723936,70469.0,70451.0,0.1265132]
[1773245924583,0.0709536,70469.0,70451.0,0.1265132]
[1773245924834,0.0723936,70469.0,70451.0,0.1265132]
[1773245925147,0.00144,70469.0,70451.0,0.1265132]
[1773245925548,0.07239364,70469.0,70452.0,0.0709703]
[1773245925725,0.07239364,70469.0,70453.0,0.1265132]
[1773245926042,0.00022001,70470.0,70455.0,0.1265132]
[1773245926800,0.07117223,70470.0,70455.0,0.1265132]
[1773245927002,0.00022001,70470.0,70455.0,0.1265132]
[1773245927409,0.07117288,70470.0,70455.0,0.1265132]